[Event "*** Titled Tuesday Blitz"]
[Site "Chess.com"]
[Date "2019.12.03"]
[Round "7"]
[White "HouseOfDurin"]
[Black "tteshan"]
[Result "0-1"]
[WhiteElo "2136"]
[BlackElo "2351"]
[TimeControl "180+2"]
[EndTime "14:36:16 PST"]
[Termination "tteshan won by resignation"]

1. d4 {[%clk 0:03:01.9]} 1... d5 {[%clk 0:03:00.8]} 2. Bg5 {[%clk 0:03:02.8]}
2... f6 {[%clk 0:02:56.5]} 3. Bh4 {[%clk 0:03:03.7]} 3... Bg4 {[%clk 0:02:46.8]}
4. f3 {[%clk 0:03:03.5]} 4... Bh5 {[%clk 0:02:45.7]} 5. g4 {[%clk 0:02:56.6]}
5... Bf7 {[%clk 0:02:42.2]} 6. e4 {[%clk 0:02:52.8]} 6... dxe4 {[%clk
0:02:41.2]} 7. fxe4 {[%clk 0:02:53.6]} 7... Nc6 {[%clk 0:02:40.9]} 8. Nf3 {[%clk
0:02:51.1]} 8... h5 {[%clk 0:02:38.9]} 9. g5 {[%clk 0:02:47.9]} 9... Qd7 {[%clk
0:02:31.1]} 10. Rg1 {[%clk 0:02:12.3]} 10... O-O-O {[%clk 0:02:22.9]} 11. c3
{[%clk 0:02:00.6]} 11... f5 {[%clk 0:02:10.7]} 12. Nbd2 {[%clk 0:01:28.4]} 12...
g6 {[%clk 0:02:07]} 13. Qc2 {[%clk 0:01:15.9]} 13... Bg7 {[%clk 0:02:03.3]} 14.
Bh3 {[%clk 0:01:04.6]} 14... e6 {[%clk 0:02:03.6]} 15. O-O-O {[%clk 0:01:01.2]}
15... Kb8 {[%clk 0:01:56.6]} 16. exf5 {[%clk 0:00:50.3]} 16... exf5 {[%clk
0:01:55.7]} 17. Bg3 {[%clk 0:00:48.8]} 17... Qd5 {[%clk 0:01:52.1]} 18. a3
{[%clk 0:00:32.2]} 18... Nge7 {[%clk 0:01:46.9]} 19. Rge1 {[%clk 0:00:31.2]}
19... Rhe8 {[%clk 0:01:46.5]} 20. Ne5 {[%clk 0:00:31.4]} 20... Nxe5 {[%clk
0:01:43.4]} 21. Bxe5 {[%clk 0:00:33.3]} 21... Bxe5 {[%clk 0:01:41.3]} 22. Rxe5
{[%clk 0:00:35.2]} 22... Qd6 {[%clk 0:01:32.6]} 23. Rde1 {[%clk 0:00:35.4]}
23... Nc6 {[%clk 0:01:31.2]} 24. Rxe8 {[%clk 0:00:34.5]} 24... Rxe8 {[%clk
0:01:33.1]} 25. Rxe8+ {[%clk 0:00:33.7]} 25... Bxe8 {[%clk 0:01:35]} 26. Nc4
{[%clk 0:00:27.9]} 26... Qe6 {[%clk 0:01:36.1]} 27. Qd3 {[%clk 0:00:22.2]} 27...
Bf7 {[%clk 0:01:31.9]} 28. Nd2 {[%clk 0:00:18]} 28... Qe1+ {[%clk 0:01:27.2]}
29. Kc2 {[%clk 0:00:18.8]} 29... a6 {[%clk 0:01:10.2]} 30. Bg2 {[%clk
0:00:19.1]} 30... Ne7 {[%clk 0:01:05.6]} 31. d5 {[%clk 0:00:18.8]} 31... Nc8
{[%clk 0:01:04]} 32. Nc4 {[%clk 0:00:15.9]} 32... Qf2+ {[%clk 0:01:02.8]} 33.
Qd2 {[%clk 0:00:16.8]} 33... Qc5 {[%clk 0:00:49.8]} 34. Ne5 {[%clk 0:00:08.6]}
34... Be8 {[%clk 0:00:51]} 35. b4 {[%clk 0:00:04.8]} 35... Qe7 {[%clk
0:00:47.9]} 36. Qd4 {[%clk 0:00:05.5]} 36... Nd6 {[%clk 0:00:44.9]} 37. c4
{[%clk 0:00:06.8]} 37... Qxg5 {[%clk 0:00:35]} 38. Bf3 {[%clk 0:00:03.5]} 38...
f4 {[%clk 0:00:31.6]} 39. Nc6+ {[%clk 0:00:04.1]} 39... bxc6 {[%clk 0:00:28.8]}
40. dxc6 {[%clk 0:00:06]} 40... Qf5+ {[%clk 0:00:27.3]} 41. Kb2 {[%clk
0:00:06.5]} 41... Qe5 {[%clk 0:00:24.7]} 42. Qxe5 {[%clk 0:00:07.1]} 42... Nxc4+
{[%clk 0:00:25.9]} 43. Kc3 {[%clk 0:00:06.3]} 43... Nxe5 {[%clk 0:00:27.8]} 44.
Be4 {[%clk 0:00:05.1]} 44... Bxc6 {[%clk 0:00:27.9]} 45. Bxg6 {[%clk 0:00:06.2]}
45... Nxg6 {[%clk 0:00:28.5]} 46. Kd3 {[%clk 0:00:07.3]} 46... Ne5+ {[%clk
0:00:28.3]} 47. Ke2 {[%clk 0:00:08.2]} 47... Be4 {[%clk 0:00:29.2]} 0-1

[Event "*** Titled Tuesday Blitz"]
[Site "Chess.com"]
[Date "2019.12.03"]
[Round "7"]
[White "Filip_Covic"]
[Black "chessasuke"]
[Result "0-1"]
[WhiteElo "2460"]
[BlackElo "2630"]
[TimeControl "180+2"]
[EndTime "14:36:18 PST"]
[Termination "chessasuke won by checkmate"]

1. e4 {[%clk 0:02:59.6]} 1... e6 {[%clk 0:03:01.9]} 2. d4 {[%clk 0:02:59.9]}
2... d5 {[%clk 0:02:53.9]} 3. Nc3 {[%clk 0:02:59.7]} 3... Bb4 {[%clk 0:02:54.2]}
4. e5 {[%clk 0:02:55.8]} 4... Qd7 {[%clk 0:02:55]} 5. a3 {[%clk 0:02:55.7]} 5...
Bxc3+ {[%clk 0:02:53.6]} 6. bxc3 {[%clk 0:02:56.2]} 6... b6 {[%clk 0:02:54.5]}
7. Qg4 {[%clk 0:02:55.8]} 7... f5 {[%clk 0:02:55.2]} 8. Qg3 {[%clk 0:02:55.8]}
8... Qf7 {[%clk 0:02:48.7]} 9. Nh3 {[%clk 0:02:52.3]} 9... h6 {[%clk 0:02:47.3]}
10. c4 {[%clk 0:02:35.5]} 10... dxc4 {[%clk 0:02:31]} 11. Bxc4 {[%clk
0:02:29.3]} 11... Ba6 {[%clk 0:02:27.9]} 12. Qf3 {[%clk 0:02:23.6]} 12... Bxc4
{[%clk 0:01:40.4]} 13. Qxa8 {[%clk 0:02:22.2]} 13... Qd7 {[%clk 0:01:41.8]} 14.
Qxb8+ {[%clk 0:02:21.9]} 14... Kf7 {[%clk 0:01:42.6]} 15. Be3 {[%clk 0:02:04]}
15... a5 {[%clk 0:01:37.9]} 16. f4 {[%clk 0:01:49.1]} 16... Bd5 {[%clk
0:01:18.4]} 17. O-O {[%clk 0:01:44.9]} 17... Kg6 {[%clk 0:01:15.5]} 18. c4
{[%clk 0:01:24.6]} 18... Bxc4 {[%clk 0:01:14.3]} 19. Rf3 {[%clk 0:01:23.1]}
19... Kh7 {[%clk 0:01:12.7]} 20. Rg3 {[%clk 0:01:03.4]} 20... Ne7 {[%clk
0:01:10.4]} 21. Qb7 {[%clk 0:00:57.5]} 21... Nc6 {[%clk 0:00:50.7]} 22. Ng5+
{[%clk 0:00:42.4]} 22... hxg5 {[%clk 0:00:43.1]} 23. Rh3+ {[%clk 0:00:43.4]}
23... Kg8 {[%clk 0:00:44.6]} 24. Qa8+ {[%clk 0:00:43.1]} 24... Nd8 {[%clk
0:00:46.2]} 25. Rxh8+ {[%clk 0:00:42.4]} 25... Kxh8 {[%clk 0:00:48.1]} 26. fxg5
{[%clk 0:00:43.3]} 26... Bd5 {[%clk 0:00:45.8]} 27. Qa6 {[%clk 0:00:44.1]} 27...
Nc6 {[%clk 0:00:34]} 28. Qe2 {[%clk 0:00:43.4]} 28... g6 {[%clk 0:00:32.6]} 29.
Qf2 {[%clk 0:00:42.6]} 29... Qh7 {[%clk 0:00:31]} 30. Rc1 {[%clk 0:00:42.2]}
30... Kg8 {[%clk 0:00:30.1]} 31. Rc3 {[%clk 0:00:41.5]} 31... Kf8 {[%clk
0:00:26.6]} 32. Bd2 {[%clk 0:00:41.4]} 32... Ke8 {[%clk 0:00:27]} 33. Rh3 {[%clk
0:00:41.2]} 33... Qe7 {[%clk 0:00:26.5]} 34. Rh8+ {[%clk 0:00:39.5]} 34... Kd7
{[%clk 0:00:27.5]} 35. Qh4 {[%clk 0:00:40.7]} 35... Qxa3 {[%clk 0:00:28.4]} 36.
Rh7+ {[%clk 0:00:21.8]} 36... Kc8 {[%clk 0:00:29.1]} 37. Qe1 {[%clk 0:00:15.6]}
37... Qb2 {[%clk 0:00:21.6]} 38. h4 {[%clk 0:00:15.5]} 38... Qxd4+ {[%clk
0:00:22.4]} 39. Qe3 {[%clk 0:00:16.3]} 39... Qg4 {[%clk 0:00:21.5]} 40. Qf2
{[%clk 0:00:14.7]} 40... Nd4 {[%clk 0:00:20.6]} 41. h5 {[%clk 0:00:14.3]} 41...
gxh5 {[%clk 0:00:21.1]} 42. Rh8+ {[%clk 0:00:11.9]} 42... Kb7 {[%clk 0:00:21.8]}
43. g6 {[%clk 0:00:12.9]} 43... Nf3+ {[%clk 0:00:21.7]} 44. Kf1 {[%clk
0:00:14.1]} 44... Bc4+ {[%clk 0:00:21.3]} 45. Qe2 {[%clk 0:00:10.5]} 45... Bxe2+
{[%clk 0:00:18.5]} 46. Kxe2 {[%clk 0:00:12.4]} 46... Nxe5+ {[%clk 0:00:20.2]}
47. Ke1 {[%clk 0:00:12.3]} 47... Nd3+ {[%clk 0:00:20.6]} 48. Kf1 {[%clk
0:00:13.6]} 48... Qd1+ {[%clk 0:00:22.3]} 49. Be1 {[%clk 0:00:14.2]} 49... Qxe1#
{[%clk 0:00:24]} 0-1

[Event "*** Titled Tuesday Blitz"]
[Site "Chess.com"]
[Date "2019.12.03"]
[Round "7"]
[White "Lovkov_Roman"]
[Black "Squirlolz"]
[Result "0-1"]
[WhiteElo "2750"]
[BlackElo "2664"]
[TimeControl "180+2"]
[EndTime "14:36:33 PST"]
[Termination "Squirlolz won by resignation"]

1. e4 {[%clk 0:03:01.9]} 1... e6 {[%clk 0:02:59.7]} 2. d4 {[%clk 0:03:02.3]}
2... d5 {[%clk 0:03:01.6]} 3. e5 {[%clk 0:03:03]} 3... c5 {[%clk 0:03:02.7]} 4.
c3 {[%clk 0:03:04.6]} 4... Nc6 {[%clk 0:03:04.4]} 5. Nf3 {[%clk 0:03:06.1]} 5...
Bd7 {[%clk 0:03:06.1]} 6. a3 {[%clk 0:03:07.3]} 6... c4 {[%clk 0:03:06]} 7. Nbd2
{[%clk 0:03:07.1]} 7... Na5 {[%clk 0:03:06.8]} 8. Rb1 {[%clk 0:03:07]} 8... Qc7
{[%clk 0:03:03.7]} 9. g3 {[%clk 0:03:07.1]} 9... Ne7 {[%clk 0:03:03.5]} 10. Bg2
{[%clk 0:03:08.2]} 10... Nc8 {[%clk 0:03:05]} 11. O-O {[%clk 0:03:07.1]} 11...
Nb6 {[%clk 0:03:06.4]} 12. Ne1 {[%clk 0:02:58.3]} 12... O-O-O {[%clk 0:02:55.8]}
13. f4 {[%clk 0:02:57.4]} 13... Kb8 {[%clk 0:02:52.3]} 14. Bh3 {[%clk
0:02:56.1]} 14... g6 {[%clk 0:02:50.1]} 15. Ng2 {[%clk 0:02:56.5]} 15... Ba4
{[%clk 0:02:48.5]} 16. Qf3 {[%clk 0:02:45.7]} 16... Bc2 {[%clk 0:02:49.2]} 17.
Ra1 {[%clk 0:02:46.5]} 17... Nb3 {[%clk 0:02:37.1]} 18. Nxb3 {[%clk 0:02:45.8]}
18... cxb3 {[%clk 0:02:38.2]} 19. Ne3 {[%clk 0:02:21.3]} 19... Be4 {[%clk
0:02:38.7]} 20. Qe2 {[%clk 0:02:22.3]} 20... Nc4 {[%clk 0:02:38.1]} 21. Bg2
{[%clk 0:01:47.7]} 21... Bxg2 {[%clk 0:02:35.4]} 22. Kxg2 {[%clk 0:01:49.6]}
22... a5 {[%clk 0:02:28.3]} 23. a4 {[%clk 0:01:48]} 23... Qc6 {[%clk 0:02:18.9]}
24. Rf3 {[%clk 0:01:48.1]} 24... b5 {[%clk 0:02:01.1]} 25. axb5 {[%clk
0:01:43.8]} 25... Qxb5 {[%clk 0:02:02]} 26. Nd1 {[%clk 0:01:16.2]} 26... Be7
{[%clk 0:01:51.8]} 27. Be3 {[%clk 0:01:16.2]} 27... a4 {[%clk 0:01:42.2]} 28.
Bf2 {[%clk 0:01:04.4]} 28... Kb7 {[%clk 0:01:35.7]} 29. g4 {[%clk 0:01:03.5]}
29... Rhg8 {[%clk 0:01:17.8]} 30. h3 {[%clk 0:01:02.1]} 30... Ra8 {[%clk
0:01:17.4]} 31. Bg3 {[%clk 0:00:57.2]} 31... Kc6 {[%clk 0:01:07.7]} 32. Rb1
{[%clk 0:00:45.3]} 32... a3 {[%clk 0:00:41.1]} 33. bxa3 {[%clk 0:00:46.1]} 33...
Rxa3 {[%clk 0:00:43]} 34. Rf2 {[%clk 0:00:41]} 34... Rga8 {[%clk 0:00:26.9]} 35.
f5 {[%clk 0:00:38.7]} 35... Ra2 {[%clk 0:00:24.1]} 36. Qe1 {[%clk 0:00:39.7]}
36... Rxf2+ {[%clk 0:00:21.8]} 37. Nxf2 {[%clk 0:00:29.2]} 37... gxf5 {[%clk
0:00:18.8]} 38. gxf5 {[%clk 0:00:30]} 38... b2 {[%clk 0:00:18.6]} 39. Nd3 {[%clk
0:00:28.9]} 39... Ra2 {[%clk 0:00:14.8]} 40. Qf2 {[%clk 0:00:25.2]} 40... Ra1
{[%clk 0:00:05.8]} 41. Qe1 {[%clk 0:00:10.4]} 41... Rxb1 {[%clk 0:00:05.8]} 42.
Qxb1 {[%clk 0:00:12.3]} 42... Na3 {[%clk 0:00:06.5]} 43. Qxb2 {[%clk 0:00:13.2]}
43... Qxd3 {[%clk 0:00:07.9]} 44. fxe6 {[%clk 0:00:14.7]} 44... Qe4+ {[%clk
0:00:08.7]} 45. Kh2 {[%clk 0:00:15.6]} 45... fxe6 {[%clk 0:00:09.1]} 46. Qb3
{[%clk 0:00:14.8]} 46... Qc2+ {[%clk 0:00:10]} 47. Qxc2 {[%clk 0:00:14.3]} 47...
Nxc2 {[%clk 0:00:11.9]} 48. Kg2 {[%clk 0:00:14.9]} 48... Kb5 {[%clk 0:00:13]}
49. Kf3 {[%clk 0:00:15.7]} 49... Kc4 {[%clk 0:00:14.4]} 0-1

[Event "*** Titled Tuesday Blitz"]
[Site "Chess.com"]
[Date "2019.12.03"]
[Round "7"]
[White "1977Ivan"]
[Black "joshdaruca"]
[Result "1/2-1/2"]
[WhiteElo "2787"]
[BlackElo "2720"]
[TimeControl "180+2"]
[EndTime "14:36:47 PST"]
[Termination "Game drawn by repetition"]

1. d4 {[%clk 0:03:01.9]} 1... Nf6 {[%clk 0:02:15.6]} 2. c4 {[%clk 0:03:02.5]}
2... e6 {[%clk 0:02:16.9]} 3. Nc3 {[%clk 0:03:02.8]} 3... Bb4 {[%clk 0:02:18.1]}
4. Bd2 {[%clk 0:03:04.2]} 4... O-O {[%clk 0:02:16.8]} 5. Nf3 {[%clk 0:03:05.6]}
5... d5 {[%clk 0:02:17.3]} 6. e3 {[%clk 0:03:06.3]} 6... b6 {[%clk 0:02:17.6]}
7. cxd5 {[%clk 0:03:04.7]} 7... exd5 {[%clk 0:02:18.1]} 8. Rc1 {[%clk
0:03:06.2]} 8... a6 {[%clk 0:02:15]} 9. Bd3 {[%clk 0:03:06.1]} 9... Re8 {[%clk
0:02:10.2]} 10. O-O {[%clk 0:03:06.5]} 10... Bd6 {[%clk 0:02:11.7]} 11. Qc2
{[%clk 0:02:27.9]} 11... Bb7 {[%clk 0:02:11.8]} 12. Ne2 {[%clk 0:01:50.7]} 12...
Nbd7 {[%clk 0:02:10.1]} 13. Ng3 {[%clk 0:01:51.5]} 13... g6 {[%clk 0:02:10.6]}
14. Bc3 {[%clk 0:01:34.9]} 14... Nf8 {[%clk 0:02:09.6]} 15. Ne5 {[%clk
0:01:33.2]} 15... c5 {[%clk 0:02:03.5]} 16. f4 {[%clk 0:01:32.2]} 16... Rc8
{[%clk 0:02:04]} 17. Qe2 {[%clk 0:01:31.4]} 17... b5 {[%clk 0:02:02.6]} 18. dxc5
{[%clk 0:01:30.2]} 18... Bxc5 {[%clk 0:02:03.5]} 19. Kh1 {[%clk 0:01:31.1]}
19... d4 {[%clk 0:02:00.8]} 20. Bxd4 {[%clk 0:01:29]} 20... Bxd4 {[%clk
0:02:02.7]} 21. Rxc8 {[%clk 0:01:30]} 21... Bxc8 {[%clk 0:02:04.6]} 22. exd4
{[%clk 0:01:30.7]} 22... Qxd4 {[%clk 0:02:06.5]} 23. Ne4 {[%clk 0:01:05.7]}
23... Nxe4 {[%clk 0:01:31.5]} 24. Bxe4 {[%clk 0:00:52.6]} 24... f6 {[%clk
0:01:29.9]} 25. Rd1 {[%clk 0:00:52.6]} 25... Qa4 {[%clk 0:01:17.1]} 26. Bd5+
{[%clk 0:00:41.9]} 26... Kg7 {[%clk 0:01:17.3]} 27. Bb3 {[%clk 0:00:28.4]} 27...
Qxf4 {[%clk 0:01:12.3]} 28. Nxg6 {[%clk 0:00:21.6]} 28... Qxh2+ {[%clk
0:01:03.5]} 29. Kxh2 {[%clk 0:00:21.8]} 29... Rxe2 {[%clk 0:01:04.4]} 30. Nf4
{[%clk 0:00:22.7]} 30... Rxb2 {[%clk 0:01:03.3]} 31. Rd8 {[%clk 0:00:22.8]}
31... Bg4 {[%clk 0:01:04.1]} 32. Kg3 {[%clk 0:00:22.9]} 32... h5 {[%clk
0:01:04.5]} 33. Ra8 {[%clk 0:00:23.1]} 33... Ng6 {[%clk 0:00:59.6]} 34. Ra7+
{[%clk 0:00:20.9]} 34... Kh6 {[%clk 0:01:00.6]} 35. Nxg6 {[%clk 0:00:22.1]}
35... Kxg6 {[%clk 0:01:01.2]} 36. Rxa6 {[%clk 0:00:23.6]} 36... Re2 {[%clk
0:00:56]} 37. Ra5 {[%clk 0:00:24.5]} 37... Re5 {[%clk 0:00:56.3]} 38. Kf4 {[%clk
0:00:25.6]} 38... Rf5+ {[%clk 0:00:56.6]} 39. Kg3 {[%clk 0:00:25.3]} 39... Kg5
{[%clk 0:00:58]} 40. Kh2 {[%clk 0:00:24.8]} 40... Kf4 {[%clk 0:00:55]} 41. a4
{[%clk 0:00:20.7]} 41... bxa4 {[%clk 0:00:50.7]} 42. Rxf5+ {[%clk 0:00:19.8]}
42... Bxf5 {[%clk 0:00:50.5]} 43. Bxa4 {[%clk 0:00:21.3]} 43... h4 {[%clk
0:00:50]} 44. Bd1 {[%clk 0:00:21.7]} 44... Ke3 {[%clk 0:00:51.1]} 45. Bb3 {[%clk
0:00:22.9]} 45... Kf2 {[%clk 0:00:52.1]} 46. Bd5 {[%clk 0:00:24.2]} 46... Bg4
{[%clk 0:00:51.9]} 47. Bc6 {[%clk 0:00:25.2]} 47... f5 {[%clk 0:00:53.3]} 48.
Bd5 {[%clk 0:00:26.1]} 48... f4 {[%clk 0:00:54.7]} 49. Bc6 {[%clk 0:00:27.3]}
49... Be6 {[%clk 0:00:55]} 50. Bf3 {[%clk 0:00:27.6]} 50... Bc4 {[%clk
0:00:44.2]} 51. Be4 {[%clk 0:00:28.3]} 51... Bf1 {[%clk 0:00:42.5]} 52. Bd5
{[%clk 0:00:29.1]} 52... Be2 {[%clk 0:00:40.9]} 53. Be4 {[%clk 0:00:29.8]} 53...
Bg4 {[%clk 0:00:41.5]} 54. Bc6 {[%clk 0:00:30.7]} 54... Bf5 {[%clk 0:00:41.8]}
55. Bd5 {[%clk 0:00:31.7]} 55... Bd7 {[%clk 0:00:42.8]} 56. Bb7 {[%clk
0:00:32.4]} 56... Ke3 {[%clk 0:00:43.3]} 57. Bd5 {[%clk 0:00:33]} 57... Bf5
{[%clk 0:00:44.6]} 58. Bc6 {[%clk 0:00:33.6]} 58... Kf2 {[%clk 0:00:44.1]} 59.
Bd5 {[%clk 0:00:34.2]} 59... Bd3 {[%clk 0:00:42.6]} 60. Bc6 {[%clk 0:00:35.1]}
60... Bf1 {[%clk 0:00:43]} 61. Bd5 {[%clk 0:00:35.9]} 61... Ke3 {[%clk
0:00:41.8]} 62. Bc6 {[%clk 0:00:36.4]} 62... Kf2 {[%clk 0:00:42.8]} 63. Bd5
{[%clk 0:00:37.3]} 1/2-1/2

[Event "*** Titled Tuesday Blitz"]
[Site "Chess.com"]
[Date "2019.12.03"]
[Round "7"]
[White "dusanacns"]
[Black "Triumphmate"]
[Result "0-1"]
[WhiteElo "2677"]
[BlackElo "2455"]
[TimeControl "180+2"]
[EndTime "14:36:48 PST"]
[Termination "Triumphmate won by resignation"]

1. d4 {[%clk 0:03:01.9]} 1... Nf6 {[%clk 0:03:00.5]} 2. Nf3 {[%clk 0:03:02.8]}
2... e6 {[%clk 0:02:58.5]} 3. Bf4 {[%clk 0:03:03.5]} 3... d5 {[%clk 0:02:56]} 4.
e3 {[%clk 0:03:04.6]} 4... Bd6 {[%clk 0:02:56.9]} 5. Bg3 {[%clk 0:03:05.8]} 5...
c5 {[%clk 0:02:54.1]} 6. Bb5+ {[%clk 0:03:06.2]} 6... Nc6 {[%clk 0:02:51.3]} 7.
c3 {[%clk 0:03:05.5]} 7... O-O {[%clk 0:02:49.1]} 8. Nbd2 {[%clk 0:03:05.7]}
8... Qe7 {[%clk 0:02:43.4]} 9. Bxc6 {[%clk 0:03:05]} 9... bxc6 {[%clk
0:02:42.5]} 10. Qa4 {[%clk 0:03:06.4]} 10... cxd4 {[%clk 0:02:37.3]} 11. cxd4
{[%clk 0:03:05]} 11... Rb8 {[%clk 0:02:31.8]} 12. Bxd6 {[%clk 0:03:04.6]} 12...
Qxd6 {[%clk 0:02:32.8]} 13. Nb3 {[%clk 0:03:06.1]} 13... Ne4 {[%clk 0:02:30.3]}
14. O-O {[%clk 0:03:05.7]} 14... Rb6 {[%clk 0:02:31.2]} 15. Qa5 {[%clk 0:03:05]}
15... Qe7 {[%clk 0:02:27.1]} 16. Rfc1 {[%clk 0:03:03.3]} 16... f6 {[%clk
0:02:21.7]} 17. Rc2 {[%clk 0:02:58.8]} 17... e5 {[%clk 0:02:17.2]} 18. Rac1
{[%clk 0:02:57.4]} 18... Ra6 {[%clk 0:02:17.8]} 19. Qe1 {[%clk 0:02:54.1]} 19...
Bd7 {[%clk 0:02:19.2]} 20. Na5 {[%clk 0:02:47.6]} 20... Rc8 {[%clk 0:02:14.2]}
21. b4 {[%clk 0:02:46.8]} 21... Qe8 {[%clk 0:02:12.2]} 22. Nd2 {[%clk
0:02:22.2]} 22... exd4 {[%clk 0:02:03.8]} 23. exd4 {[%clk 0:02:22.7]} 23... Nd6
{[%clk 0:02:02.2]} 24. Ndb3 {[%clk 0:02:03.3]} 24... Qxe1+ {[%clk 0:01:56.4]}
25. Rxe1 {[%clk 0:02:05.2]} 25... Rb6 {[%clk 0:01:54.5]} 26. a3 {[%clk
0:02:01.7]} 26... Bf5 {[%clk 0:01:55.7]} 27. Ra2 {[%clk 0:02:01.1]} 27... h5
{[%clk 0:01:53.2]} 28. f3 {[%clk 0:02:02.4]} 28... Nb5 {[%clk 0:01:50.7]} 29.
Kf2 {[%clk 0:02:00.4]} 29... Bg6 {[%clk 0:01:48.6]} 30. h4 {[%clk 0:01:58.9]}
30... Kf7 {[%clk 0:01:46.7]} 31. Re3 {[%clk 0:01:36]} 31... Nd6 {[%clk
0:01:43.1]} 32. Rc3 {[%clk 0:01:27.6]} 32... Bf5 {[%clk 0:01:40.1]} 33. Nc5
{[%clk 0:01:25.5]} 33... Nb5 {[%clk 0:01:36.9]} 34. Re3 {[%clk 0:01:17.6]} 34...
Rc7 {[%clk 0:01:30.2]} 35. Nab3 {[%clk 0:01:16.4]} 35... Bb1 {[%clk 0:01:27.3]}
36. Ra1 {[%clk 0:01:15.8]} 36... Bc2 {[%clk 0:01:24.7]} 37. Ra2 {[%clk
0:01:12.6]} 37... Bxb3 {[%clk 0:01:23.7]} 38. Nxb3 {[%clk 0:01:13.1]} 38... Re7
{[%clk 0:01:21.2]} 39. Rxe7+ {[%clk 0:01:08.9]} 39... Kxe7 {[%clk 0:01:23.1]}
40. Ke3 {[%clk 0:01:10.8]} 40... Nd6 {[%clk 0:01:19.6]} 41. Kd3 {[%clk
0:01:11.1]} 41... Nf5 {[%clk 0:01:17.1]} 42. Re2+ {[%clk 0:01:10.2]} 42... Kf7
{[%clk 0:01:17.9]} 43. Na5 {[%clk 0:01:02]} 43... Nxh4 {[%clk 0:01:13.9]} 44.
Rc2 {[%clk 0:01:03]} 44... g5 {[%clk 0:01:10.6]} 45. g4 {[%clk 0:00:42]} 45...
Nxf3 {[%clk 0:01:08.5]} 46. Rxc6 {[%clk 0:00:39.5]} 46... Rxc6 {[%clk
0:01:04.4]} 47. Nxc6 {[%clk 0:00:41.4]} 47... hxg4 {[%clk 0:01:03]} 48. Ke3
{[%clk 0:00:42.7]} 48... f5 {[%clk 0:01:01.2]} 49. Nxa7 {[%clk 0:00:42.4]} 49...
f4+ {[%clk 0:01:00.1]} 50. Kf2 {[%clk 0:00:43.6]} 50... Nxd4 {[%clk 0:00:59]}
51. b5 {[%clk 0:00:45.1]} 51... g3+ {[%clk 0:00:57.9]} 52. Kg2 {[%clk
0:00:46.3]} 52... g4 {[%clk 0:00:53.6]} 53. b6 {[%clk 0:00:46.9]} 53... Ne2
{[%clk 0:00:51.9]} 54. Kf1 {[%clk 0:00:15.6]} 54... f3 {[%clk 0:00:48.7]} 55.
Nc8 {[%clk 0:00:10.1]} 55... g2+ {[%clk 0:00:46.3]} 56. Ke1 {[%clk 0:00:12]}
56... g1=Q+ {[%clk 0:00:47.6]} 57. Kd2 {[%clk 0:00:13.5]} 57... Qd4+ {[%clk
0:00:45.3]} 58. Ke1 {[%clk 0:00:14.8]} 58... Nf4 {[%clk 0:00:41.6]} 0-1

[Event "*** Titled Tuesday Blitz"]
[Site "Chess.com"]
[Date "2019.12.03"]
[Round "7"]
[White "marianokar"]
[Black "HrvojeZagreb"]
[Result "1-0"]
[WhiteElo "2411"]
[BlackElo "2221"]
[TimeControl "180+2"]
[EndTime "14:36:54 PST"]
[Termination "marianokar won by resignation"]

1. d4 {[%clk 0:03:01.9]} 1... e6 {[%clk 0:03:00.4]} 2. c4 {[%clk 0:03:02]} 2...
f5 {[%clk 0:03:01.4]} 3. Nc3 {[%clk 0:03:03.9]} 3... Nf6 {[%clk 0:03:01.7]} 4.
Nf3 {[%clk 0:03:05.7]} 4... Bb4 {[%clk 0:03:02.6]} 5. Bg5 {[%clk 0:03:04]} 5...
O-O {[%clk 0:03:02.2]} 6. Qc2 {[%clk 0:03:04.6]} 6... d6 {[%clk 0:03:00.9]} 7.
g3 {[%clk 0:03:03.1]} 7... Qe8 {[%clk 0:02:57.6]} 8. Bxf6 {[%clk 0:03:02.1]}
8... Rxf6 {[%clk 0:02:59.5]} 9. Bg2 {[%clk 0:03:00.7]} 9... e5 {[%clk
0:02:59.3]} 10. O-O-O {[%clk 0:02:54.8]} 10... e4 {[%clk 0:02:54.4]} 11. Ng5
{[%clk 0:02:51.7]} 11... Bxc3 {[%clk 0:02:48.8]} 12. Qxc3 {[%clk 0:02:51.6]}
12... c6 {[%clk 0:02:49.8]} 13. f3 {[%clk 0:02:34.8]} 13... h6 {[%clk
0:02:48.6]} 14. Nh3 {[%clk 0:02:34.8]} 14... d5 {[%clk 0:02:46]} 15. Nf4 {[%clk
0:02:32.4]} 15... Be6 {[%clk 0:02:41.3]} 16. h4 {[%clk 0:02:27.9]} 16... Bf7
{[%clk 0:02:34.2]} 17. c5 {[%clk 0:02:17.7]} 17... b6 {[%clk 0:02:32.2]} 18. Kb1
{[%clk 0:02:13.5]} 18... Nd7 {[%clk 0:02:28.8]} 19. e3 {[%clk 0:02:09.7]} 19...
bxc5 {[%clk 0:02:23.3]} 20. dxc5 {[%clk 0:02:09.8]} 20... Rb8 {[%clk 0:02:22.2]}
21. fxe4 {[%clk 0:02:06.8]} 21... fxe4 {[%clk 0:02:24.1]} 22. g4 {[%clk
0:02:01.4]} 22... Qe5 {[%clk 0:01:56.9]} 23. Qxe5 {[%clk 0:01:29.4]} 23... Nxe5
{[%clk 0:01:58.8]} 24. g5 {[%clk 0:01:31.2]} 24... Rxf4 {[%clk 0:01:57]} 25.
exf4 {[%clk 0:01:31.2]} 25... Nc4 {[%clk 0:01:57.3]} 26. b3 {[%clk 0:01:27.1]}
26... Ne3 {[%clk 0:01:52.5]} 27. Rd2 {[%clk 0:01:26.7]} 27... Nxg2 {[%clk
0:01:52.4]} 28. Rxg2 {[%clk 0:01:27.2]} 28... h5 {[%clk 0:01:39.3]} 29. Rd1
{[%clk 0:01:06]} 29... Rd8 {[%clk 0:01:29.6]} 30. Rd4 {[%clk 0:01:05.7]} 30...
Bg6 {[%clk 0:01:21.8]} 31. Kc1 {[%clk 0:01:02.2]} 31... Kf7 {[%clk 0:01:17.7]}
32. Kd2 {[%clk 0:01:01.4]} 32... Ke6 {[%clk 0:01:18.8]} 33. Ke3 {[%clk
0:01:01.8]} 33... Kf5 {[%clk 0:01:18.3]} 34. Ra4 {[%clk 0:00:55.9]} 34... Rd7
{[%clk 0:01:18.9]} 35. Rd4 {[%clk 0:00:50.6]} 35... Be8 {[%clk 0:01:16.6]} 36.
b4 {[%clk 0:00:51.7]} 36... Rb7 {[%clk 0:01:13.4]} 37. a3 {[%clk 0:00:45.1]}
37... g6 {[%clk 0:01:14.1]} 38. Rdd2 {[%clk 0:00:37]} 38... a5 {[%clk
0:01:07.6]} 39. Rd4 {[%clk 0:00:32.3]} 39... Ra7 {[%clk 0:00:50.8]} 40. a4
{[%clk 0:00:30.1]} 40... Ke6 {[%clk 0:00:41]} 41. Rb2 {[%clk 0:00:27.9]} 41...
Rb7 {[%clk 0:00:34.7]} 42. b5 {[%clk 0:00:20.9]} 42... cxb5 {[%clk 0:00:33.6]}
43. axb5 {[%clk 0:00:21.4]} 43... Rxb5 {[%clk 0:00:30.7]} 44. Rxb5 {[%clk
0:00:21.4]} 44... Bxb5 {[%clk 0:00:32.6]} 45. Rd1 {[%clk 0:00:19.7]} 45... a4
{[%clk 0:00:23.1]} 46. Ra1 {[%clk 0:00:14.1]} 46... Kd7 {[%clk 0:00:22.6]} 47.
Kd4 {[%clk 0:00:14.3]} 47... Kc6 {[%clk 0:00:23.7]} 48. f5 {[%clk 0:00:15.2]}
48... e3 {[%clk 0:00:16.4]} 49. fxg6 {[%clk 0:00:14.8]} 49... e2 {[%clk
0:00:14]} 50. g7 {[%clk 0:00:15.7]} 1-0